[Event "1000GM Spring Break Schev-C 2024"]
[Site "San Jose"]
[Date "2024.04.04"]
[Round "4.1"]
[White "Jimenez Garcia, Emmanuel"]
[Black "Zhou, Ruoyu"]
[Result "1-0"]
[ECO "C00"]
[WhiteElo "2421"]
[BlackElo "2149"]
[Annotator "TA"]
[PlyCount "129"]
[EventDate "2024.03.28"]
[EventType "schev"]
[EventCountry "USA"]
[SourceTitle "playchess.com"]
[Source "ChessBase"]
[SourceQuality "1"]
[TimeControl "5400+30"]

{[%evp 24,129,-6,-13,0,-14,-12,-8,0,0,0,0,22,5,39,36,53,56,97,100,106,50,90,85,91,75,107,70,90,85,66,45,87,66,100,95,108,112,104,105,119,0,64,49,90,85,102,88,128,113,160,161,222,221,222,209,249,257,236,224,201,241,231,200,197,203,177,193,197,183,189,59,48,0,195,159,286,315,276,290,287,280,272,198,196,189,193,140,249,223,327,328,339,330,316,304,303,256,437,434,1298,1181,29968,6119,29982,29983,29983,29983]} 1. Nf3 {[%emt 0:00:09]} d5 {[%emt 0:00:09]} 2. g3 {[%emt 0:00:05]} e6 {[%emt 0:00:09]} 3. Bg2 {[%emt 0:00:09]} Nf6 {[%emt 0:00:10]} 4. O-O {[%emt 0:00:08]} Be7 {[%emt 0:00:05]} 5. d3 {[%emt 0:00:05]} O-O {[%emt 0:00:13]} 6. Nbd2 {[%emt 0:00:44]} c5 {[%emt 0:00:53]} 7. e4 {[%emt 0:00:19]} Nc6 {[%emt 0:00:58]} 8. a4 {[%emt 0:02:53]} b6 {[%emt 0:03:01] C00: French: Unusual White 2nd moves.} 9. e5 {[%emt 0:02:07]} Nd7 {[%emt 0:00:54]} 10. Re1 {[%emt 0:00:03]} Qc7 {[%emt 0:01:09]} 11. Qe2 {[%emt 0:00:34]} Bb7 {[%emt 0:01:38]} 12. Nf1 {[%emt 0:00:45]} d4 {[%emt 0:05:24]} 13. h4 {[%emt 0:04:10]} Rfe8 $146 {[%emt 0:07:53]} ({Predecessor:} 13... Rfc8 14. Bf4 Nf8 15. Bg5 Bxg5 16. Nxg5 h6 17. Nf3 a6 18. N1d2 Nb4 19. Nc4 Bc6 {1-0 Safronov,K (1875)-Opanasenko,M (2103) St Petersburg Blockade op 2011 (4)}) 14. h5 {[%emt 0:01:20]} h6 {[%emt 0:10:45]} 15. Bf4 {[%emt 0:01:43]} Nf8 {[%emt 0:01:56]} 16. N1d2 {[%emt 0:04:53]} Nb4 {[%emt 0:04:22]} 17. Nc4 {[%emt 0:07:38]} Nd5 {[%emt 0:01:03]} 18. Bd2 {[%emt 0:00:07]} Nh7 {[%emt 0:07:14]} 19. Nh2 {[%emt 0:02:39]} Bf8 {[%emt 0:03:04]} 20. Be4 {[%emt 0:05:24]} Nb4 {[%emt 0:06:46]} 21. Bxb4 {[%emt 0:01:56]} cxb4 {[%emt 0:00:36]} 22. Nf3 {[%emt 0:00:27]} ({White should try} 22. Bxb7 $16 Qxb7 23. Rf1) 22... Bc5 {[%emt 0:01:07]} 23. Bxb7 {[%emt 0:01:21]} Qxb7 {[%emt 0:00:11]} 24. Qe4 {[%emt 0:00:06]} Qd7 {[%emt 0:01:58]} 25. a5 {[%emt 0:01:34]} Rab8 {[%emt 0:02:36]} 26. axb6 {[%emt 0:00:14]} axb6 {[%emt 0:00:29]} 27. Ra6 {[%emt 0:08:05]} Qd8 {[%emt 0:03:28]} 28. Kg2 {[%emt 0:14:56]} Ng5 {[%emt 0:01:44]} 29. Nxg5 {[%emt 0:00:02]} Qxg5 {[%emt 0:00:11]} 30. Qf3 {[%emt 0:00:05]} Qd8 {[%emt 0:02:40]} 31. Rea1 {[%emt 0:02:23]} Rf8 {[%emt 0:01:19]} 32. Re1 {[%emt 0:03:14]} (32. b3 $16) 32... Qd7 {[%emt 0:02:17]} (32... Re8 $1 $11) 33. Nd2 {[%emt 0:05:41]} Rbc8 {[%emt 0:05:05]} 34. Qe4 {[%emt 0:01:29]} Qe7 {[%emt 0:02:17]} 35. Nf3 {[%emt 0:00:30]} Rcd8 {[%emt 0:00:50]} 36. Rea1 {[%emt 0:01:33]} Qd7 {[%emt 0:01:05]} ({Better is} 36... Rd5 37. Ra7 Qe8) 37. Ra7 $16 {[%emt 0:00:19]} Qb5 {[%emt 0:01:44]} (37... Qd5 $142) 38. b3 {[%emt 0:01:01]} Rd7 {[%emt 0:01:47]} 39. g4 {[%emt 0:04:02]} Rfd8 {[%emt 0:06:27]} 40. g5 {[%emt 0:01:56]} Bf8 {[%emt 0:02:19]} 41. gxh6 {[%emt 0:04:58]} gxh6 {[%emt 0:00:46]} 42. Rxd7 {[%emt 0:08:10]} Qxd7 {[%emt 0:00:59]} 43. Kh3 {[%emt 0:00:02]} Bg7 {[%emt 0:01:33]} 44. Rg1 {[%emt 0:02:47]} Kh8 {[%emt 0:00:16]} 45. Qg4 {[%emt 0:01:32]} f5 {[%emt 0:01:10]} 46. exf6 {[%emt 0:00:47]} Bxf6 {[%emt 0:00:04]} 47. Re1 {[%emt 0:03:08]} ({White should play} 47. Qg6 $18 Bg7 48. Rg4) 47... Qd5 $1 $14 {[%emt 0:01:24]} 48. Rg1 {[%emt 0:01:28]} (48. Nh4 $1 $14 Bxh4 49. Kxh4) 48... Qd7 $1 $18 {[%emt 0:02:03]} 49. Rg3 {[%emt 0:00:57]} e5 {[%emt 0:00:27] [#]} (49... Rf8 $16 50. Kg2 Bg7) 50. Qxd7 $1 $18 {[%emt 0:00:14]} Rxd7 {[%emt 0:08:52]} 51. Rg6 {[%emt 0:00:19]} Bg7 {[%emt 0:00:00]} 52. Rxb6 {[%emt 0:00:28]} Rc7 {[%emt 0:00:00]} 53. Ne1 {[%emt 0:01:42]} ({Much less strong is} 53. Rxb4 $6 Rxc2 54. Rb8+ Kh7 $18) 53... Rf7 {[%emt 0:00:00]} 54. Kg3 {[%emt 0:00:33]} ({But not} 54. Rxb4 $6 Rxf2 55. Rb8+ Kh7 $14) 54... Rf5 {[%emt 0:00:00]} 55. Rxb4 {[%emt 0:00:25]} (55. Nf3 $18) 55... Rxh5 {[%emt 0:00:00]} (55... Rg5+ $16 {was necessary.} 56. Kf3 Rxh5) 56. Nf3 $18 {[%emt 0:00:12]} Rf5 {[%emt 0:00:00]} (56... Rh1 $142 57. Rc4 Kg8) 57. Rb8+ $18 {[%emt 0:01:42]} Kh7 {[%emt 0:00:00]} 58. b4 {[%emt 0:00:15]} Bf8 {[%emt 0:00:00]} 59. Rb7+ {[%emt 0:00:24]} Kg8 {[%emt 0:00:00]} 60. Nd2 {[%emt 0:01:04]} h5 $2 {[%emt 0:00:00]} (60... Rf7 61. Rxf7 Kxf7) 61. Ne4 $18 {[%emt 0:03:04]} Bh6 {[%emt 0:00:22]} (61... Rf7 $142) 62. b5 $18 {[%emt 0:00:00]} Bf4+ {[%emt 0:00:21]} 63. Kh3 {[%emt 0:00:00]} Be3 {[%emt 0:00:34]} 64. b6 {[%emt 0:00:00]} Rf8 {[%emt 0:00:22]} 65. Rc7 {[%emt 0:00:00]} 1-0

[Event "1000GM Spring Break Schev-C 2024"]
[Site "San Jose"]
[Date "2024.04.04"]
[Round "4.2"]
[White "Arenas, David"]
[Black "Talwalkar, Vedant"]
[Result "1/2-1/2"]
[ECO "B58"]
[WhiteElo "2366"]
[BlackElo "2020"]
[Annotator "RC"]
[PlyCount "86"]
[EventDate "2024.03.28"]
[EventType "schev"]
[EventCountry "USA"]
[SourceTitle "playchess.com"]
[Source "ChessBase"]
[SourceQuality "1"]
[TimeControl "5400+30"]

1. e4 {[%emt 0:03:39]} c5 {[%emt 0:00:07]} 2. Nf3 {[%emt 0:00:12]} d6 {[%emt 0:00:09]} 3. d4 {[%emt 0:00:44]} cxd4 {[%emt 0:00:14]} 4. Nxd4 {[%emt 0:00:03]} Nf6 {[%emt 0:00:13]} 5. Nc3 {[%emt 1:28:22]} Nc6 {[%emt 1:32:17]} 6. Be2 {[%emt 0:00:00]} e5 7. Nf3 {[%emt 0:01:00]} h6 {[%emt 0:01:00]} 8. O-O {[%emt 0:00:30]} Be6 {[%emt 0:00:30]} 9. Re1 {[%emt 0:00:30]} g6 {[%emt 0:00:30]} 10. Bf1 {[%emt 0:00:30]} a6 {[%emt 0:00:30]} 11. b3 {[%emt 0:00:30]} Bg7 {[%emt 0:00:30]} 12. a4 {[%emt 0:00:30]} d5 {[%emt 0:00:30]} 13. exd5 {[%emt 0:00:30]} Nxd5 {[%emt 0:00:00]} 14. Nxd5 {[%emt 0:00:00]} Qxd5 {[%emt 0:00:00]} 15. Qxd5 {[%emt 0:00:00]} Bxd5 {[%emt 0:00:00]} 16. Nxe5 {[%emt 0:00:00]} Bxe5 {[%emt 0:00:00]} 17. Bb2 {[%emt 0:00:00]} f6 {[%emt 0:00:00]} 18. f4 {[%emt 0:00:00]} O-O-O {[%emt 0:00:00]} 19. fxe5 {[%emt 0:00:00]} f5 {[%emt 0:00:00]} 20. Bd3 {[%emt 0:00:00]} Rhe8 {[%emt 0:00:00]} 21. Bc3 {[%emt 0:00:00]} Bxb3 {[%emt 0:00:00]} 22. Bxf5+ {[%emt 0:00:00]} gxf5 {[%emt 0:00:00]} 23. cxb3 {[%emt 0:00:00]} Rd3 {[%emt 0:00:00]} 24. Rac1 {[%emt 0:00:00]} f4 {[%emt 0:00:00]} 25. Re4 {[%emt 0:00:00]} f3 {[%emt 0:00:00]} 26. g3 {[%emt 0:00:00]} Kd7 {[%emt 0:00:00]} 27. Kf2 {[%emt 0:00:00]} Ke6 {[%emt 0:00:00]} 28. Rf4 {[%emt 0:00:00]} Rc8 {[%emt 0:00:00]} 29. Rf6+ {[%emt 0:00:00]} Kd7 {[%emt 0:00:00]} 30. e6+ {[%emt 0:00:00]} Ke7 {[%emt 0:00:00]} 31. Rxf3 {[%emt 0:00:00]} Ne5 {[%emt 0:00:00]} 32. Bb4+ {[%emt 0:00:00]} Kxe6 {[%emt 0:00:00]} 33. Rf6+ {[%emt 0:00:00]} Kxf6 {[%emt 0:00:00]} 34. Rxc8 {[%emt 0:00:00]} Ng4+ {[%emt 0:00:00]} 35. Ke2 {[%emt 0:00:00]} Rxb3 {[%emt 0:00:00]} 36. Bc3+ {[%emt 0:00:00]} Kf7 {[%emt 0:00:00]} 37. Kd3 {[%emt 0:00:00]} Rb6 {[%emt 0:00:00]} 38. Rc4 {[%emt 0:00:00]} h5 {[%emt 0:00:00]} 39. h3 {[%emt 0:00:00]} Nf2+ {[%emt 0:00:00]} 40. Kc2 {[%emt 0:13:30]} Nxh3 {[%emt 0:14:00]} 41. Rh4 {[%emt 0:00:30]} Ng5 {[%emt 0:00:00]} 42. Rxh5 {[%emt 0:00:00]} Ne4 {[%emt 0:01:00]} 43. Be1 {[%emt 0:00:00]} Rc6+ {[%emt 0:00:00]} 1/2-1/2

[Event "1000GM Spring Break Schev-C 2024"]
[Site "San Jose"]
[Date "2024.04.04"]
[Round "4.3"]
[White "Guo, Ethan"]
[Black "Alarcon Bahamondez, Roberto Ignacio"]
[Result "1-0"]
[ECO "B13"]
[WhiteElo "2211"]
[BlackElo "2300"]
[Annotator "RC"]
[PlyCount "119"]
[EventDate "2024.03.28"]
[EventType "schev"]
[EventCountry "USA"]
[SourceTitle "playchess.com"]
[Source "ChessBase"]
[SourceQuality "1"]
[TimeControl "5400+30"]

1. e4 {[%emt 0:12:58]} c6 {[%emt 0:00:21]} 2. d4 {[%emt 0:00:07]} d5 {[%emt 0:00:14]} 3. exd5 {[%emt 0:00:07]} cxd5 {[%emt 0:00:06]} 4. Bd3 {[%emt 0:00:11]} Nf6 {[%emt 0:00:13]} 5. c3 {[%emt 0:00:10]} Bg4 {[%emt 0:01:35]} 6. Qb3 {[%emt 0:01:18]} Qd7 {[%emt 0:05:20]} 7. Nd2 {[%emt 0:02:12]} Nc6 {[%emt 0:00:51]} 8. Ngf3 {[%emt 0:00:19]} Qc7 {[%emt 0:00:50]} 9. h3 {[%emt 0:01:45]} Bd7 {[%emt 0:00:52]} 10. O-O {[%emt 0:02:00]} e6 {[%emt 0:00:33]} 11. Re1 {[%emt 0:04:45]} Bd6 {[%emt 0:01:56]} 12. Nf1 {[%emt 0:00:34]} h6 {[%emt 0:06:41]} 13. Qc2 {[%emt 0:02:05]} Nh5 {[%emt 0:07:19]} 14. Qe2 {[%emt 0:03:29]} Nf4 {[%emt 0:00:45]} 15. Bxf4 {[%emt 0:00:09]} Bxf4 {[%emt 0:00:08]} 16. Ne5 {[%emt 0:00:26]} Rc8 {[%emt 0:12:37]} 17. Nxd7 {[%emt 0:03:03]} Qxd7 {[%emt 0:01:56]} 18. Qg4 {[%emt 0:00:13]} g5 {[%emt 0:01:38]} 19. g3 {[%emt 0:00:45]} Bd6 {[%emt 0:12:22]} 20. Ne3 {[%emt 0:01:13]} Kd8 {[%emt 0:04:25]} 21. Kg2 {[%emt 0:11:28]} Kc7 {[%emt 0:03:33]} 22. Nxd5+ {[%emt 0:00:50]} exd5 {[%emt 0:02:05]} 23. Bf5 {[%emt 0:00:08]} Qd8 {[%emt 0:00:19]} 24. Bxc8 {[%emt 0:00:14]} Qxc8 {[%emt 0:00:25]} 25. Qf3 {[%emt 0:00:09]} Qd7 {[%emt 0:06:47]} 26. Qxd5 {[%emt 0:00:16]} Nd8 {[%emt 0:03:51]} 27. c4 {[%emt 0:01:28]} Qc6 {[%emt 0:04:12]} 28. Qxc6+ {[%emt 0:00:14]} bxc6 {[%emt 0:00:40]} 29. c5 {[%emt 0:01:17]} Bf8 {[%emt 0:00:20]} 30. b4 {[%emt 0:00:17]} Ne6 {[%emt 0:01:49]} 31. Rad1 {[%emt 0:00:18]} Bg7 {[%emt 0:05:07]} 32. d5 {[%emt 0:00:31]} cxd5 {[%emt 0:00:36]} 33. Rxd5 {[%emt 0:00:06]} Bc3 {[%emt 0:06:20]} 34. Re4 {[%emt 0:01:01]} Re8 {[%emt 0:02:53]} 35. Rc4 {[%emt 0:00:45]} Ba1 {[%emt 0:00:55]} 36. c6 {[%emt 0:00:39]} Re7 {[%emt 0:02:25]} 37. a4 {[%emt 0:00:34]} a6 {[%emt 0:01:08]} 38. b5 {[%emt 0:01:13]} axb5 {[%emt 0:02:05]} 39. axb5 {[%emt 0:00:07]} Kb6 {[%emt 0:00:50]} 40. Ra4 Nc7 {[%emt 0:01:29]} 41. Rd8 Be5 {[%emt 0:02:29]} 42. Rb8+ {[%emt 0:01:15]} Kc5 {[%emt 0:00:30]} 43. b6 {[%emt 0:01:02]} Nd5 {[%emt 0:00:00]} 44. c7 {[%emt 0:00:16]} Nxb6 {[%emt 0:01:00]} 45. Rxb6 {[%emt 0:00:18]} Rxc7 {[%emt 0:00:00]} 46. Rxh6 {[%emt 0:00:07]} f6 {[%emt 0:00:00]} 47. Ra2 {[%emt 0:00:17]} Kd4 {[%emt 0:00:00]} 48. Rh8 {[%emt 0:00:31]} Ke4 {[%emt 0:02:00]} 49. Re2+ {[%emt 0:00:30]} Kf5 {[%emt 0:00:00]} 50. h4 {[%emt 0:01:08]} g4 {[%emt 0:00:00]} 51. Rg8 {[%emt 0:00:11]} Rc3 {[%emt 0:00:00]} 52. h5 {[%emt 0:01:03]} Rc7 {[%emt 0:00:40]} 53. Re1 {[%emt 0:00:11]} Rh7 {[%emt 0:01:15]} 54. Rh1 {[%emt 0:00:09]} Rh6 {[%emt 0:00:31]} 55. Rh4 {[%emt 0:00:09]} Rh7 {[%emt 0:00:22]} 56. h6 {[%emt 0:00:05]} Ke6 {[%emt 0:00:18]} 57. Rgxg4 {[%emt 0:00:16]} Kf5 {[%emt 0:00:18]} 58. Rg7 {[%emt 0:00:07]} Rh8 {[%emt 0:00:11]} 59. f4 {[%emt 0:00:14]} Bd6 {[%emt 0:00:22]} 60. h7 {[%emt 0:53:17]} 1-0

[Event "1000GM Spring Break Schev-C 2024"]
[Site "San Jose"]
[Date "2024.04.04"]
[Round "4.4"]
[White "Guo, Andrew"]
[Black "Zuluaga Mancilla, Cesar"]
[Result "1/2-1/2"]
[ECO "D11"]
[WhiteElo "2215"]
[BlackElo "2206"]
[Annotator "RC"]
[PlyCount "41"]
[EventDate "2024.03.28"]
[EventType "schev"]
[EventCountry "USA"]
[SourceTitle "playchess.com"]
[Source "ChessBase"]
[SourceQuality "1"]
[TimeControl "5400+30"]

1. d4 {[%emt 0:00:00]} d5 {[%emt 0:14:56]} 2. c4 {[%emt 0:00:09]} c6 {[%emt 0:00:01]} 3. Nf3 {[%emt 0:00:08]} Nf6 {[%emt 0:00:05]} 4. Nbd2 {[%emt 0:00:04]} a6 {[%emt 0:02:02]} 5. e3 {[%emt 0:02:33]} Bf5 {[%emt 0:00:52]} 6. Be2 {[%emt 0:00:26]} h6 {[%emt 0:01:06]} 7. O-O {[%emt 0:00:06]} e6 {[%emt 0:00:05]} 8. b3 {[%emt 0:00:03]} Nbd7 {[%emt 0:00:29]} 9. Bb2 {[%emt 0:00:07]} Be7 {[%emt 0:01:05]} 10. a3 {[%emt 0:02:36]} O-O {[%emt 0:00:19]} 11. Rc1 {[%emt 0:00:27]} a5 {[%emt 0:02:19]} 12. Ne1 {[%emt 0:02:43]} Ne4 {[%emt 0:01:10]} 13. Nd3 {[%emt 0:02:37]} Qb6 {[%emt 0:00:28]} 14. c5 {[%emt 0:03:24]} Qc7 {[%emt 0:00:08]} 15. Nf3 {[%emt 0:02:34]} Bh7 {[%emt 0:07:16]} 16. Nfe5 {[%emt 0:00:56]} Nef6 {[%emt 0:00:31]} 17. b4 {[%emt 0:02:59]} Nxe5 {[%emt 0:03:29]} 18. Nxe5 {[%emt 0:01:03]} axb4 {[%emt 0:00:24]} 19. axb4 {[%emt 0:00:05]} Nd7 {[%emt 0:00:37]} 20. Nxd7 {[%emt 0:00:43]} Qxd7 {[%emt 0:00:02]} 21. Qb3 {[%emt 0:00:10]} 1/2-1/2

[Event "1000GM Spring Break Schev-C 2024"]
[Site "San Jose"]
[Date "2024.04.04"]
[Round "4.5"]
[White "Figueredo Losada, Leonel"]
[Black "Wang, Jeffery"]
[Result "0-1"]
[ECO "D00"]
[WhiteElo "2323"]
[BlackElo "2056"]
[Annotator "RC"]
[PlyCount "96"]
[EventDate "2024.03.28"]
[EventType "schev"]
[EventCountry "USA"]
[SourceTitle "playchess.com"]
[Source "ChessBase"]
[SourceQuality "1"]
[TimeControl "5400+30"]

1. d4 {[%emt 0:00:30]} Nf6 {[%emt 0:01:27]} 2. Bg5 {[%emt 0:00:07]} d5 {[%emt 0:00:41]} 3. Bxf6 {[%emt 0:00:22]} exf6 {[%emt 0:00:12]} 4. e3 {[%emt 0:00:05]} Bd6 {[%emt 0:00:23]} 5. Bd3 {[%emt 0:00:03]} c6 {[%emt 0:01:35]} 6. Nd2 {[%emt 0:00:10]} Be6 {[%emt 0:01:27]} 7. c4 {[%emt 0:04:56]} dxc4 {[%emt 0:00:47]} 8. Bxc4 {[%emt 0:02:33]} O-O {[%emt 0:06:27]} 9. Ngf3 {[%emt 0:00:10]} Qe7 {[%emt 0:02:17]} 10. O-O {[%emt 0:07:57]} Nd7 {[%emt 0:06:11]} 11. Qc2 {[%emt 0:09:40]} f5 {[%emt 0:02:32]} 12. Rfe1 {[%emt 0:01:02]} Nf6 {[%emt 0:03:09]} 13. Bxe6 {[%emt 0:12:52]} Qxe6 {[%emt 0:02:06]} 14. Rac1 {[%emt 0:03:59]} Ne4 {[%emt 0:02:18]} 15. a3 {[%emt 0:06:28]} a5 {[%emt 0:05:51]} 16. g3 {[%emt 0:00:04]} Rfe8 {[%emt 0:01:02]} 17. Qb3 {[%emt 0:02:12]} Qd7 {[%emt 0:06:11]} 18. Red1 {[%emt 0:03:25]} a4 {[%emt 0:05:56]} 19. Qd3 {[%emt 0:02:39]} Qe6 {[%emt 0:02:22]} 20. Nc4 {[%emt 0:02:42]} Qf6 {[%emt 0:08:53]} 21. Qc2 {[%emt 0:01:38]} Bc7 {[%emt 0:03:58]} 22. Ncd2 {[%emt 0:07:01]} Bd6 {[%emt 0:06:33]} 23. Nb1 {[%emt 0:00:12]} Qg6 {[%emt 0:03:43]} 24. Nc3 {[%emt 0:06:14]} Nxc3 {[%emt 0:02:34]} 25. Nh4 {[%emt 0:08:43]} Qg4 {[%emt 0:03:36]} 26. bxc3 {[%emt 0:03:24]} f4 {[%emt 0:02:30]} 27. exf4 {[%emt 0:01:08]} Bxa3 {[%emt 0:01:17]} 28. Ra1 {[%emt 0:00:46]} Re2 {[%emt 0:00:55]} 29. Rd2 {[%emt 0:05:08]} Rxd2 {[%emt 0:01:00]} 30. Qxd2 {[%emt 0:00:03]} Bf8 {[%emt 0:02:11]} 31. d5 {[%emt 0:00:48]} Qd7 {[%emt 0:00:59]} 32. c4 {[%emt 0:00:04]} cxd5 {[%emt 0:00:35]} 33. Nf3 {[%emt 0:00:39]} a3 {[%emt 0:01:37]} 34. Ne5 {[%emt 0:00:28]} Qd6 {[%emt 0:01:30]} 35. cxd5 {[%emt 0:01:45]} b5 {[%emt 0:00:57]} 36. Qd3 {[%emt 0:00:13]} f6 {[%emt 0:01:42]} 37. Nc6 {[%emt 0:00:03]} b4 {[%emt 0:00:33]} 38. Qb3 {[%emt 0:00:08]} Re8 {[%emt 0:00:58]} 39. Ra2 {[%emt 0:00:46]} Re1+ {[%emt 0:01:44]} 40. Kg2 {[%emt 0:00:03]} Rc1 {[%emt 0:00:21]} 41. Re2 {[%emt 0:05:28]} Rc3 {[%emt 0:01:51]} 42. Qd1 {[%emt 0:00:04]} b3 {[%emt 0:01:51]} 43. Re6 {[%emt 0:00:27]} Qd7 {[%emt 0:00:40]} 44. Qd4 {[%emt 0:04:04]} b2 {[%emt 0:01:04]} 45. Qe4 {[%emt 0:00:07]} Rc5 {[%emt 0:01:28]} 46. Re8 {[%emt 0:00:25]} Rb5 {[%emt 0:02:16]} 47. Qe6+ {[%emt 0:01:14]} Qxe6 {[%emt 0:01:05]} 48. dxe6 {[%emt 0:00:04]} Rb7 {[%emt 0:00:07]} 0-1

[Event "1000GM Spring Break Schev-C 2024"]
[Site "San Jose"]
[Date "2024.04.04"]
[Round "5.1"]
[White "Zhou, Ruoyu"]
[Black "Arenas, David"]
[Result "1/2-1/2"]
[ECO "B12"]
[WhiteElo "2149"]
[BlackElo "2366"]
[Annotator "RC"]
[PlyCount "109"]
[EventDate "2024.03.28"]
[EventType "schev"]
[EventCountry "USA"]
[SourceTitle "playchess.com"]
[Source "ChessBase"]
[SourceQuality "1"]
[TimeControl "5400+30"]

1. e4 {[%emt 0:00:03]} c6 {[%emt 0:08:13]} 2. d4 {[%emt 0:00:11]} d5 {[%emt 0:00:05]} 3. e5 {[%emt 0:00:12]} Bf5 {[%emt 0:00:06]} 4. Nf3 {[%emt 0:00:09]} e6 {[%emt 0:00:16]} 5. Be2 {[%emt 0:00:08]} Ne7 {[%emt 0:00:00]} 6. O-O h6 {[%emt 1:24:50]} 7. c3 {[%emt 1:33:17]} Nd7 {[%emt 0:00:00]} 8. Na3 {[%emt 0:00:00]} a6 {[%emt 0:00:00]} 9. Nc2 {[%emt 0:00:00]} c5 {[%emt 0:00:00]} 10. Ne3 {[%emt 0:00:00]} Bg6 {[%emt 0:00:00]} 11. dxc5 {[%emt 0:00:00]} Nxc5 {[%emt 0:00:00]} 12. c4 {[%emt 0:00:00]} dxc4 {[%emt 0:00:00]} 13. Nxc4 {[%emt 0:00:00]} Nd5 {[%emt 0:00:00]} 14. a4 {[%emt 0:00:00]} Be7 {[%emt 0:00:00]} 15. Nd4 {[%emt 0:00:00]} O-O {[%emt 0:00:00]} 16. Be3 {[%emt 0:00:00]} Nxe3 {[%emt 0:00:00]} 17. fxe3 {[%emt 0:00:00]} Qd5 {[%emt 0:00:00]} 18. Rc1 {[%emt 0:00:00]} Rad8 {[%emt 0:00:00]} 19. Bf3 {[%emt 0:00:00]} Be4 {[%emt 0:00:00]} 20. Bxe4 {[%emt 0:00:00]} Qxe4 {[%emt 0:00:00]} 21. Rc3 {[%emt 0:00:00]} b5 {[%emt 0:00:00]} 22. axb5 {[%emt 0:00:00]} axb5 {[%emt 0:00:00]} 23. Nd2 {[%emt 0:00:00]} Qd5 {[%emt 0:00:00]} 24. Qf3 {[%emt 0:00:00]} Bg5 {[%emt 0:00:00]} 25. N2b3 {[%emt 0:01:27]} Nxb3 {[%emt 0:00:00]} 26. Rxb3 {[%emt 0:00:47]} Qxe5 {[%emt 0:00:00]} 27. Nc6 {[%emt 0:01:56]} Qd5 {[%emt 0:00:00]} 28. Rc3 {[%emt 0:01:23]} Qxf3 {[%emt 0:00:00]} 29. gxf3 {[%emt 0:00:10]} Rd2 {[%emt 0:00:00]} 30. Rf2 {[%emt 0:00:24]} Rd1+ {[%emt 0:00:00]} 31. Rf1 {[%emt 0:00:19]} Rxf1+ {[%emt 0:00:00]} 32. Kxf1 {[%emt 0:00:02]} Bf6 {[%emt 0:00:00]} 33. Rc5 {[%emt 0:01:03]} Bxb2 {[%emt 0:00:00]} 34. Rxb5 {[%emt 0:00:03]} Bf6 {[%emt 0:00:00]} 35. Kg2 {[%emt 0:01:22]} Rc8 {[%emt 0:00:00]} 36. Rb8 {[%emt 0:00:58]} Rxb8 {[%emt 0:00:00]} 37. Nxb8 {[%emt 0:00:02]} Be7 {[%emt 0:00:00]} 38. Nc6 {[%emt 0:00:48]} Bc5 {[%emt 0:00:00]} 39. e4 {[%emt 0:00:01]} f6 {[%emt 0:00:15]} 40. Na5 {[%emt 0:00:26]} Kf7 {[%emt 0:00:44]} 41. Nc4 {[%emt 0:00:32]} Ke7 {[%emt 0:01:00]} 42. Nb2 {[%emt 0:00:19]} Kd7 {[%emt 0:01:23]} 43. Nd3 {[%emt 0:00:15]} Bd6 {[%emt 0:00:02]} 44. f4 {[%emt 0:01:50]} Kc6 {[%emt 0:01:02]} 45. Kf3 {[%emt 0:00:24]} Bc7 {[%emt 0:01:13]} 46. h4 {[%emt 0:00:31]} h5 {[%emt 0:00:25]} 47. Nf2 {[%emt 0:00:36]} Kc5 {[%emt 0:01:16]} 48. Nh1 {[%emt 0:01:29]} g6 {[%emt 0:02:42]} 49. f5 {[%emt 0:01:18]} exf5 {[%emt 0:01:31]} 50. exf5 {[%emt 0:00:02]} gxf5 {[%emt 0:00:03]} 51. Nf2 {[%emt 0:00:23]} Kd4 {[%emt 0:00:05]} 52. Nh3 {[%emt 0:00:08]} Kd5 {[%emt 0:01:21]} 53. Nf2 {[%emt 0:00:32]} Ba5 {[%emt 0:05:56]} 54. Nd3 {[%emt 0:01:16]} Bd2 {[%emt 0:00:34]} 55. Nf2 {[%emt 0:00:26]} 1/2-1/2

[Event "1000GM Spring Break Schev-C 2024"]
[Site "San Jose"]
[Date "2024.04.04"]
[Round "5.2"]
[White "Alarcon Bahamondez, Roberto Ignacio"]
[Black "Talwalkar, Vedant"]
[Result "1/2-1/2"]
[ECO "A83"]
[WhiteElo "2300"]
[BlackElo "2020"]
[Annotator "RC"]
[PlyCount "61"]
[EventDate "2024.03.28"]
[EventType "schev"]
[EventCountry "USA"]
[SourceTitle "playchess.com"]
[Source "ChessBase"]
[SourceQuality "1"]
[TimeControl "5400+30"]

1. d4 {[%emt 0:00:29]} f5 {[%emt 0:00:43]} 2. Nc3 {[%emt 0:00:12]} e6 {[%emt 0:00:40]} 3. e4 {[%emt 0:00:24]} fxe4 {[%emt 0:01:44]} 4. Nxe4 {[%emt 0:00:10]} Nf6 {[%emt 0:01:28]} 5. Bg5 {[%emt 0:00:11]} Be7 {[%emt 0:00:58]} 6. Bxf6 {[%emt 0:00:07]} Bxf6 {[%emt 0:00:14]} 7. Nf3 {[%emt 0:00:47]} d5 {[%emt 0:06:14]} 8. Nxf6+ {[%emt 0:05:27]} Qxf6 {[%emt 0:00:09]} 9. Bb5+ {[%emt 0:04:57]} c6 {[%emt 0:02:31]} 10. Bd3 {[%emt 0:00:15]} Nd7 {[%emt 0:07:39]} 11. O-O {[%emt 0:01:23]} O-O {[%emt 0:02:32]} 12. Re1 {[%emt 0:01:15]} h6 {[%emt 0:09:24]} 13. c3 {[%emt 0:00:34]} Re8 {[%emt 0:09:06]} 14. Qe2 {[%emt 0:02:23]} a6 {[%emt 0:05:14]} 15. Rac1 {[%emt 0:06:49]} c5 {[%emt 0:00:26]} 16. Bb1 {[%emt 0:00:32]} g5 {[%emt 0:05:12]} 17. h3 {[%emt 0:10:43]} c4 {[%emt 0:01:42]} 18. Qc2 {[%emt 0:02:10]} Qg7 {[%emt 0:00:32]} 19. Re3 {[%emt 0:00:22]} Nf6 {[%emt 0:02:03]} 20. Rce1 {[%emt 0:00:51]} b5 {[%emt 0:02:34]} 21. Ne5 {[%emt 0:02:14]} Ra7 {[%emt 0:03:52]} 22. Qe2 {[%emt 0:02:56]} Rc7 {[%emt 0:02:29]} 23. Rg3 {[%emt 0:02:58]} Nd7 {[%emt 0:05:22]} 24. Qh5 {[%emt 0:05:58]} Nf6 {[%emt 0:00:16]} 25. Qd1 {[%emt 0:00:33]} Nd7 {[%emt 0:06:39]} 26. h4 {[%emt 0:00:46]} Rf8 {[%emt 0:04:02]} 27. hxg5 {[%emt 0:03:25]} hxg5 {[%emt 0:00:06]} 28. Qd2 {[%emt 0:03:05]} Nxe5 {[%emt 0:00:15]} 29. Rxe5 {[%emt 0:00:52]} Kf7 {[%emt 0:00:17]} 30. Rexg5 {[%emt 0:00:32]} Qf6 {[%emt 0:00:13]} 31. Rf3 {[%emt 0:42:40]} 1/2-1/2